fUSD/lending_fUSD_20250219
["ID","MTS","AMOUNT","RATE_DAILY","PERIOD"]
[353704214,1739994646550,-820.5,0.00011163,2]
[353704216,1739994646560,-247.396645,0.00011163,2]
[353704218,1739994646569,-500.0,0.00011163,2]
[353704220,1739994646579,-500.0,0.00011163,2]
[353704222,1739994646588,-500.0,0.00011163,2]
[353704224,1739994646598,-500.0,0.00011163,2]
[353704226,1739994646607,-284.335154,0.00011163,2]
[353704228,1739994646619,-500.0,0.00011163,2]
[353704230,1739994646632,-500.0,0.00011163,2]
[353704232,1739994646642,-500.0,0.00011163,2]
[353704234,1739994646656,-150.0,0.00011163,2]
[353704236,1739994646666,-500.0,0.00011163,2]
[353704238,1739994646676,-1767.35,0.00011163,2]
[353704240,1739994646686,-745.87,0.00011163,2]
[353704242,1739994646697,-879.92,0.00011163,2]
[353704244,1739994646706,-500.0,0.00011163,2]
[353704265,1739994646903,-1079.92,0.00011163,2]
[353704267,1739994646915,-583.76,0.00011163,2]
[353704268,1739994646926,-711.1,0.00011163,2]
[353704270,1739994646941,-703.2,0.00011163,2]
[353704271,1739994646951,-629.4,0.00011163,2]
[353704273,1739994646961,-3024.66,0.00011163,2]
[353704276,1739994646970,-500.0,0.00011163,2]
[353704278,1739994646979,-500.0,0.00011163,2]
[353704280,1739994646989,-698.64,0.00011163,2]
[353704282,1739994646998,-630.32,0.00011163,2]
[353704283,1739994647008,-500.0,0.00011163,2]
[353704285,1739994647017,-500.0,0.00011163,2]
[353704287,1739994647028,-500.0,0.00011163,2]
[353704290,1739994647038,-500.0,0.00011163,2]
[353704292,1739994647047,-702.65,0.00011163,2]
[353704294,1739994647057,-500.0,0.00011163,2]
[353704296,1739994647068,-709.23,0.00011163,2]
[353704298,1739994647077,-485.16,0.00011163,2]
[353704300,1739994647087,-1794.62,0.00011163,2]
[353704302,1739994647096,-733.91,0.00011163,2]
[353704303,1739994647105,-500.0,0.00011163,2]
[353704305,1739994647114,-886.26,0.00011163,2]
[353704307,1739994647124,-1093.65,0.00011163,2]
[353704309,1739994647133,-818.79,0.00011163,2]
[353704311,1739994647142,-500.0,0.00011163,2]
[353704313,1739994647152,-500.0,0.00011163,2]
[353704315,1739994647163,-500.0,0.00011163,2]
[353704317,1739994647172,-500.0,0.00011163,2]
[353704319,1739994647182,-817.14,0.00011163,2]
[353704321,1739994647192,-500.0,0.00011164,2]
[353704323,1739994647202,-256.24690662,0.00011164,2]
[353704325,1739994647211,-500.0,0.00011164,2]
[353704327,1739994647220,-500.0,0.00011164,2]
[353704330,1739994647232,-500.0,0.00011164,2]
[353704332,1739994647242,-500.0,0.00011164,2]
[353704333,1739994647251,-500.0,0.00011164,2]
[353704335,1739994647261,-500.0,0.00011164,2]
[353704337,1739994647270,-500.0,0.00011164,2]
[353704338,1739994647280,-500.0,0.00011164,2]
[353704339,1739994647289,-512.93403774,0.00011164,2]
[353704340,1739994647299,-500.0,0.00011164,2]
[353704341,1739994647309,-500.0,0.00011164,2]
[353704342,1739994647319,-500.0,0.00011164,2]
[353704344,1739994647329,-375.83162613,0.00011164,2]
[353704345,1739994647339,-500.0,0.00011164,2]
[353704347,1739994647353,-500.0,0.00011164,2]
[353704349,1739994647362,-500.0,0.00011164,2]
[353704351,1739994647372,-265.08856626,0.00011164,2]
[353704353,1739994647381,-500.0,0.00011164,2]
[353704355,1739994647390,-500.0,0.00011164,2]
[353704357,1739994647400,-500.0,0.00011164,2]
[353704359,1739994647412,-595.56,0.00011164,2]
[353704362,1739994647421,-500.0,0.00011164,2]
[353704363,1739994647431,-500.0,0.00011164,2]
[353704365,1739994647439,-500.0,0.00011164,2]
[353704367,1739994647448,-500.0,0.00011164,2]
[353704369,1739994647458,-500.0,0.00011164,2]
[353704371,1739994647467,-695.38,0.00011164,2]
[353704373,1739994647476,-589.91,0.00011164,2]
[353704375,1739994647485,-500.0,0.00011164,2]
[353704377,1739994647494,-500.0,0.00011164,2]
[353704379,1739994647503,-500.0,0.00011164,2]
[353704381,1739994647512,-500.0,0.00011164,2]
[353704383,1739994647522,-500.0,0.00011164,2]
[353704385,1739994647531,-500.0,0.00011164,2]
[353704387,1739994647541,-500.0,0.00011164,2]
[353704389,1739994647551,-1138.22,0.00011164,2]
[353704391,1739994647560,-500.0,0.00011164,2]
[353704393,1739994647569,-501.59,0.00011164,2]
[353704395,1739994647578,-500.0,0.00011164,2]
[353704397,1739994647587,-500.0,0.00011164,2]
[353704399,1739994647597,-500.0,0.00011164,2]
[353704401,1739994647609,-500.0,0.00011164,2]
[353704403,1739994647619,-500.0,0.00011164,2]
[353704405,1739994647629,-500.0,0.00011164,2]
[353704407,1739994647638,-500.0,0.00011164,2]
[353704409,1739994647648,-500.0,0.00011164,2]
[353704411,1739994647661,-500.0,0.00011164,2]
[353704413,1739994647670,-620.01475042,0.00011164,2]
[353704415,1739994647680,-500.0,0.00011164,2]
[353704417,1739994647690,-237.22766498,0.00011164,2]
[353704419,1739994647700,-407.46,0.00011164,2]
[353704421,1739994647709,-753.47,0.00011164,2]
[353704423,1739994647719,-450.29433948,0.00011164,2]
[353704425,1739994647729,-500.0,0.00011164,2]
[353704427,1739994647738,-500.0,0.00011164,2]
[353704429,1739994647747,-500.0,0.00011164,2]
[353704431,1739994647757,-500.0,0.00011164,2]
[353704433,1739994647766,-500.0,0.00011164,2]
[353704435,1739994647776,-500.0,0.00011164,2]
[353704437,1739994647786,-500.0,0.00011164,2]
[353704439,1739994647796,-500.0,0.00011164,2]
[353704440,1739994647806,-500.0,0.00011164,2]
[353704442,1739994647815,-500.0,0.00011164,2]
[353704443,1739994647825,-500.0,0.00011164,2]
[353704445,1739994647834,-500.0,0.00011164,2]
[353704446,1739994647843,-500.0,0.00011164,2]
[353704448,1739994647853,-500.0,0.00011164,2]
[353704449,1739994647863,-500.0,0.00011164,2]
[353704451,1739994647873,-500.0,0.00011164,2]
[353704452,1739994647882,-500.0,0.00011164,2]
[353704454,1739994647891,-500.0,0.00011164,2]
[353704455,1739994647900,-500.0,0.00011164,2]
[353704457,1739994647912,-500.0,0.00011164,2]
[353704458,1739994647922,-328.33523918,0.00011164,2]
[353704460,1739994647931,-500.0,0.00011164,2]
[353704461,1739994647940,-500.0,0.00011164,2]
[353704463,1739994647951,-500.0,0.00011164,2]
[353704464,1739994647960,-500.0,0.00011164,2]
[353704466,1739994647970,-500.0,0.00011164,2]
[353704467,1739994647979,-500.0,0.00011164,2]
[353704469,1739994647989,-500.0,0.00011164,2]
[353704470,1739994647998,-500.0,0.00011164,2]
[353704472,1739994648008,-263.67,0.00011164,2]
[353704474,1739994648019,-500.0,0.00011164,2]
[353704475,1739994648028,-500.0,0.00011164,2]
[353704477,1739994648038,-500.0,0.00011164,2]
[353704478,1739994648047,-500.0,0.00011164,2]
[353704480,1739994648057,-500.0,0.00011164,2]
[353704481,1739994648067,-500.0,0.00011164,2]
[353704483,1739994648077,-500.0,0.00011164,2]
[353704485,1739994648087,-500.0,0.00011164,2]
[353704486,1739994648097,-500.0,0.00011164,2]
[353704488,1739994648107,-584.82,0.00011164,2]
[353704490,1739994648117,-500.0,0.00011164,2]
[353704491,1739994648126,-500.0,0.00011164,2]
[353704493,1739994648136,-500.0,0.00011164,2]
[353704494,1739994648145,-500.0,0.00011164,2]
[353704496,1739994648155,-500.0,0.00011164,2]
[353704498,1739994648169,-500.0,0.00011164,2]
[353704499,1739994648179,-500.0,0.00011164,2]
[353704501,1739994648188,-500.0,0.00011164,2]
[353704503,1739994648197,-500.0,0.00011164,2]
[353704504,1739994648207,-500.0,0.00011164,2]
[353704506,1739994648217,-500.0,0.00011164,2]
[353704508,1739994648227,-500.0,0.00011164,2]
[353704509,1739994648236,-500.0,0.00011164,2]
[353704511,1739994648246,-500.0,0.00011164,2]
[353704513,1739994648256,-500.0,0.00011164,2]
[353704514,1739994648266,-500.0,0.00011164,2]
[353704516,1739994648276,-500.0,0.00011164,2]
[353704518,1739994648286,-500.0,0.00011164,2]
[353704519,1739994648295,-500.0,0.00011164,2]
[353704521,1739994648304,-500.0,0.00011164,2]
[353704522,1739994648313,-500.0,0.00011164,2]
[353704524,1739994648322,-500.0,0.00011164,2]
[353704526,1739994648332,-500.0,0.00011164,2]
[353704528,1739994648341,-500.0,0.00011164,2]
[353704530,1739994648350,-500.0,0.00011164,2]
[353704532,1739994648359,-500.0,0.00011164,2]
[353704534,1739994648369,-500.0,0.00011164,2]
[353704535,1739994648378,-500.0,0.00011164,2]
[353704537,1739994648388,-500.0,0.00011164,2]
[353704539,1739994648397,-603.16,0.00011164,2]
[353704542,1739994648407,-150.0,0.00011169,2]
[353704543,1739994648418,-150.0,0.00011173,2]
[353704545,1739994648428,-500.0,0.00011179,2]
[353704547,1739994648438,-500.0,0.00011181,2]
[353704549,1739994648447,-500.0,0.00011181,2]
[353704551,1739994648456,-527.28,0.00011181,2]
[353704553,1739994648466,-500.0,0.00011181,2]
[353704555,1739994648475,-500.0,0.00011181,2]
[353704557,1739994648484,-503.68,0.00011181,2]
[353704558,1739994648492,-500.0,0.00011181,2]
[353704559,1739994648501,-500.0,0.00011181,2]
[353704560,1739994648511,-500.0,0.00011181,2]
[353704561,1739994648519,-500.0,0.00011181,2]
[353704562,1739994648528,-500.0,0.00011181,2]
[353704563,1739994648538,-500.0,0.00011181,2]
[353704564,1739994648547,-500.0,0.00011181,2]
[353704565,1739994648556,-500.0,0.00011181,2]
[353704566,1739994648565,-500.0,0.00011181,2]
[353704567,1739994648574,-601.54,0.00011181,2]
[353704568,1739994648583,-500.0,0.00011181,2]
[353704569,1739994648592,-500.0,0.00011181,2]
[353704570,1739994648601,-152.77,0.00011181,2]
[353704571,1739994648610,-500.0,0.00011181,2]
[353704572,1739994648620,-500.0,0.00011181,2]
[353704573,1739994648629,-608.05,0.00011181,2]
[353704574,1739994648637,-585.98,0.00011181,2]
[353704575,1739994648646,-500.0,0.00011181,2]
[353704576,1739994648661,-500.0,0.00011181,2]
[353704578,1739994648671,-500.0,0.00011181,2]
[353704580,1739994648681,-500.0,0.00011181,2]
[353704582,1739994648691,-500.0,0.00011181,2]
[353704584,1739994648702,-560.95,0.00011181,2]
[353704586,1739994648711,-500.0,0.00011181,2]
[353704588,1739994648721,-500.0,0.00011181,2]
[353704590,1739994648730,-500.0,0.00011181,2]
[353704592,1739994648740,-500.0,0.00011181,2]
[353704594,1739994648750,-500.0,0.00011181,2]
[353704596,1739994648761,-500.0,0.00011181,2]
[353704598,1739994648771,-530.16,0.00011181,2]
[353704600,1739994648780,-218.74,0.00011181,2]
[353704602,1739994648790,-500.0,0.00011181,2]
[353704604,1739994648800,-500.0,0.00011181,2]
[353704606,1739994648810,-500.0,0.00011181,2]
[353704608,1739994648820,-622.72260968,0.00011181,2]
[353704610,1739994648830,-500.0,0.00011181,2]
[353704612,1739994648840,-500.0,0.00011181,2]
[353704614,1739994648850,-600.74,0.00011181,2]
[353704616,1739994648861,-500.0,0.00011181,2]
[353704618,1739994648871,-500.0,0.00011181,2]
[353704620,1739994648881,-500.0,0.00011181,2]
[353704622,1739994648890,-500.0,0.00011181,2]
[353704624,1739994648900,-500.0,0.00011181,2]
[353704626,1739994648912,-500.0,0.00011181,2]
[353704628,1739994648922,-500.0,0.00011181,2]
[353704630,1739994648932,-500.0,0.00011181,2]
[353704632,1739994648942,-500.0,0.00011181,2]
[353704634,1739994648951,-500.0,0.00011181,2]
[353704636,1739994648961,-500.0,0.00011181,2]
[353704638,1739994648970,-500.0,0.00011181,2]
[353704640,1739994648980,-669.03,0.00011181,2]
[353704642,1739994648990,-500.0,0.00011181,2]
[353704644,1739994649000,-725.23,0.00011181,2]
[353704645,1739994649010,-719.86,0.00011181,2]
[353704647,1739994649019,-608.09,0.00011181,2]
[353704649,1739994649030,-562.03,0.00011181,2]
[353704651,1739994649039,-500.0,0.00011181,2]
[353704653,1739994649048,-500.0,0.00011181,2]
[353704655,1739994649058,-500.0,0.00011181,2]
[353704658,1739994649069,-641.43,0.00011181,2]
[353704660,1739994649078,-758.65,0.00011181,2]
[353704661,1739994649087,-642.63,0.00011181,2]
[353704663,1739994649096,-500.0,0.00011181,2]
[353704665,1739994649106,-2055.39,0.00011181,2]
[353704667,1739994649118,-500.0,0.00011181,2]
[353704669,1739994649128,-520.9,0.00011181,2]
[353704671,1739994649137,-717.27,0.00011181,2]
[353704673,1739994649148,-500.0,0.00011181,2]
[353704676,1739994649158,-587.51,0.00011181,2]
[353704678,1739994649170,-500.0,0.00011181,2]
[353704679,1739994649180,-500.0,0.00011181,2]
[353704682,1739994649190,-534.5,0.00011181,2]
[353704683,1739994649200,-1177.99,0.00011181,2]
[353704685,1739994649209,-1453.64,0.00011181,2]
[353704688,1739994649220,-516.7,0.00011181,2]
[353704690,1739994649229,-500.0,0.00011181,2]
[353704691,1739994649238,-704.57,0.00011181,2]
[353704693,1739994649249,-782.44,0.00011181,2]
[353704695,1739994649258,-500.0,0.00011181,2]
[353704697,1739994649268,-797.09,0.00011181,2]
[353704699,1739994649277,-500.0,0.00011181,2]
[353704701,1739994649286,-500.0,0.00011181,2]
[353704703,1739994649296,-1193.14,0.00011181,2]
[353704705,1739994649305,-500.0,0.00011181,2]
[353704707,1739994649315,-548.32,0.00011181,2]
[353704709,1739994649325,-617.29,0.00011181,2]
[353704711,1739994649335,-500.0,0.00011181,2]
[353704714,1739994649346,-500.0,0.00011181,2]
[353704715,1739994649355,-558.71,0.00011181,2]
[353704718,1739994649365,-723.39,0.00011181,2]
[353704720,1739994649375,-500.0,0.00011181,2]
[353704722,1739994649385,-656.19,0.00011181,2]
[353704723,1739994649394,-210.09,0.00011181,2]
[353704725,1739994649404,-682.97,0.00011181,2]
[353704727,1739994649413,-819.85,0.00011181,2]
[353704729,1739994649422,-500.0,0.00011181,2]
[353704731,1739994649431,-500.0,0.00011181,2]
[353704733,1739994649441,-644.32,0.00011181,2]
[353704735,1739994649450,-977.12,0.00011181,2]
[353704737,1739994649459,-421.8,0.00011181,2]
[353704739,1739994649470,-1088.39,0.00011181,2]
[353704741,1739994649479,-500.0,0.00011181,2]
[353704743,1739994649489,-500.0,0.00011181,2]
[353704745,1739994649498,-2045.49,0.00011181,2]
[353704748,1739994649508,-500.0,0.00011181,2]
[353704750,1739994649518,-500.0,0.00011181,2]
[353704752,1739994649527,-1053.97,0.00011181,2]
[353704754,1739994649537,-462.54784015,0.00011181,2]
[353704756,1739994649548,-500.0,0.00011181,2]
[353704758,1739994649557,-500.0,0.00011181,2]
[353704760,1739994649567,-675.13,0.00011181,2]
[353704762,1739994649576,-1093.54,0.00011181,2]
[353704764,1739994649585,-500.0,0.00011181,2]
[353704766,1739994649595,-500.0,0.00011181,2]
[353704768,1739994649604,-500.0,0.00011181,2]
[353704770,1739994649613,-500.0,0.00011181,2]
[353704772,1739994649623,-500.0,0.00011181,2]
[353704774,1739994649632,-526.08,0.00011181,2]
[353704776,1739994649641,-500.0,0.00011181,2]
[353704778,1739994649655,-30000.0,0.00011183,2]
[353704780,1739994649665,-1000.0,0.00011196,2]
[353704782,1739994649674,-496.93,0.00011199,2]
[353704784,1739994649683,-629.73,0.000112,2]
[353704786,1739994649694,-545.92,0.000112,2]
[353704788,1739994649703,-500.0,0.000112,2]
[353704790,1739994649714,-500.0,0.000112,2]
[353704792,1739994649723,-500.0,0.000112,2]
[353704794,1739994649733,-162.71,0.000112,2]
[353704796,1739994649742,-986.71,0.000112,2]
[353704798,1739994649752,-596.44,0.000112,2]
[353704800,1739994649761,-1171.12,0.000112,2]
[353704802,1739994649770,-150.0,0.00011201,2]
[353704803,1739994649779,-150.0,0.00011202,2]
[353704805,1739994649789,-150.0,0.00011203,2]
[353704807,1739994649798,-603.17439364,0.00011203,2]
[353704809,1739994649808,-150.0,0.00011203,2]
[353704812,1739994649818,-150.0,0.00011205,2]
[353704813,1739994649827,-395.17575876,0.00011207,2]
[353704816,1739994649837,-150.0,0.00011214,2]
[353704817,1739994649846,-150.0,0.00011214,2]
[353704819,1739994649855,-150.0,0.00011216,2]
[353704822,1739994649865,-150.0,0.00011221,2]
[353704824,1739994649875,-150.0,0.00011221,2]
[353704826,1739994649885,-150.0,0.0001123,2]
[353704828,1739994649895,-10906.12475189,0.00011235,2]
[353704830,1739994649904,-150.0,0.00011241,2]
[353704832,1739994649914,-707.8,0.00011244,2]
[353704833,1739994649923,-564.84,0.00011244,2]
[353704835,1739994649932,-620.27,0.00011244,2]
[353704837,1739994649941,-500.0,0.00011244,2]
[353704839,1739994649951,-604.41,0.00011244,2]
[353704841,1739994649961,-501.78,0.00011244,2]
[353704843,1739994649970,-500.0,0.00011244,2]
[353704845,1739994649980,-690.23,0.00011244,2]
[353704847,1739994649990,-810.92,0.00011244,2]
[353704849,1739994649998,-724.65,0.00011244,2]
[353704851,1739994650007,-500.0,0.00011244,2]
[353704853,1739994650017,-964.47,0.00011244,2]
[353704855,1739994650026,-500.0,0.00011244,2]
[353704857,1739994650036,-500.0,0.00011244,2]
[353704859,1739994650045,-623.43,0.00011244,2]
[353704861,1739994650055,-500.0,0.00011244,2]
[353704863,1739994650064,-615.05,0.00011244,2]
[353704865,1739994650074,-500.0,0.00011244,2]
[353704867,1739994650083,-1513.67,0.00011244,2]
[353704869,1739994650095,-512.3,0.00011244,2]
[353704872,1739994650104,-567.76,0.00011244,2]
[353704874,1739994650114,-531.74,0.00011244,2]
[353704875,1739994650124,-511.83,0.00011244,2]
[353704877,1739994650133,-500.0,0.00011244,2]
[353704879,1739994650143,-802.27,0.00011244,2]
[353704882,1739994650152,-1153.09,0.00011244,2]
[353704884,1739994650161,-500.0,0.00011245,2]
[353704886,1739994650171,-500.0,0.00011245,2]
[353704888,1739994650181,-500.0,0.00011245,2]
[353704889,1739994650191,-500.0,0.00011245,2]
[353704892,1739994650200,-500.0,0.00011245,2]
[353704894,1739994650210,-500.0,0.00011245,2]
[353704896,1739994650219,-500.0,0.00011245,2]
[353704898,1739994650229,-820.5,0.00011245,2]
[353704900,1739994650238,-247.396645,0.00011245,2]
[353704901,1739994650247,-500.0,0.00011245,2]
[353704903,1739994650257,-500.0,0.00011245,2]
[353704905,1739994650267,-500.0,0.00011245,2]
[353704907,1739994650276,-284.335154,0.00011245,2]
[353704910,1739994650286,-500.0,0.00011245,2]
[353704911,1739994650295,-500.0,0.00011245,2]
[353704913,1739994650304,-500.0,0.00011245,2]
[353704915,1739994650314,-500.0,0.00011245,2]
[353704917,1739994650323,-1767.35,0.00011245,2]
[353704919,1739994650332,-745.87,0.00011245,2]
[353704921,1739994650342,-879.92,0.00011245,2]
[353704923,1739994650351,-500.0,0.00011245,2]
[353704925,1739994650361,-1079.92,0.00011245,2]
[353704927,1739994650371,-583.76,0.00011245,2]
[353704929,1739994650380,-711.1,0.00011245,2]
[353704931,1739994650389,-703.2,0.00011245,2]
[353704933,1739994650399,-629.4,0.00011245,2]
[353704935,1739994650408,-3024.66,0.00011245,2]
[353704937,1739994650419,-500.0,0.00011245,2]
[353704939,1739994650428,-698.64,0.00011245,2]
[353704941,1739994650437,-630.32,0.00011245,2]
[353704943,1739994650447,-500.0,0.00011245,2]
[353704945,1739994650455,-500.0,0.00011245,2]
[353704947,1739994650465,-500.0,0.00011245,2]
[353704949,1739994650475,-500.0,0.00011245,2]
[353704951,1739994650484,-702.65,0.00011245,2]
[353704953,1739994650494,-500.0,0.00011245,2]
[353704955,1739994650503,-709.23,0.00011245,2]
[353704957,1739994650512,-1794.62,0.00011245,2]
[353704959,1739994650522,-733.91,0.00011245,2]
[353704961,1739994650530,-500.0,0.00011245,2]
[353704963,1739994650540,-886.26,0.00011245,2]
[353704965,1739994650549,-1093.65,0.00011245,2]
[353704967,1739994650558,-818.79,0.00011245,2]
[353704969,1739994650568,-500.0,0.00011245,2]
[353704971,1739994650577,-500.0,0.00011245,2]
[353704973,1739994650585,-817.14,0.00011245,2]
[353704975,1739994650594,-500.0,0.00011246,2]
[353704977,1739994650603,-500.0,0.00011246,2]
[353704978,1739994650613,-500.0,0.00011246,2]
[353704980,1739994650622,-500.0,0.00011246,2]
[353704982,1739994650632,-500.0,0.00011246,2]
[353704984,1739994650641,-500.0,0.00011246,2]
[353704986,1739994650653,-500.0,0.00011246,2]
[353704988,1739994650666,-500.0,0.00011246,2]
[353704990,1739994650677,-500.0,0.00011246,2]
[353704992,1739994650687,-500.0,0.00011246,2]
[353704994,1739994650702,-500.0,0.00011246,2]
[353704996,1739994650714,-500.0,0.00011246,2]
[353704998,1739994650724,-500.0,0.00011246,2]
[353705000,1739994650735,-292.80578666,0.00011246,2]
[353705002,1739994650745,-500.0,0.00011246,2]
[353705004,1739994650755,-500.0,0.00011246,2]
[353705006,1739994650764,-500.0,0.00011246,2]
[353705008,1739994650773,-500.0,0.00011246,2]
[353705010,1739994650782,-595.56,0.00011246,2]
[353705012,1739994650791,-500.0,0.00011246,2]
[353705014,1739994650800,-500.0,0.00011246,2]
[353705016,1739994650810,-500.0,0.00011246,2]
[353705018,1739994650819,-500.0,0.00011246,2]
[353705020,1739994650829,-500.0,0.00011246,2]
[353705022,1739994650838,-695.38,0.00011246,2]
[353705024,1739994650847,-589.91,0.00011246,2]
[353705026,1739994650856,-500.0,0.00011246,2]
[353705028,1739994650866,-500.0,0.00011246,2]
[353705029,1739994650875,-207.41869279,0.00011246,2]
[353705031,1739994650885,-500.0,0.00011246,2]
[353705033,1739994650895,-500.0,0.00011246,2]
[353705036,1739994650906,-500.0,0.00011246,2]
[353705050,1739994651095,-500.0,0.00011246,2]
[353705051,1739994651104,-1138.22,0.00011246,2]
[353705052,1739994651113,-500.0,0.00011246,2]
[353705053,1739994651122,-501.59,0.00011246,2]
[353705055,1739994651132,-500.0,0.00011246,2]
[353705057,1739994651141,-500.0,0.00011246,2]
[353705059,1739994651151,-500.0,0.00011246,2]
[353705061,1739994651160,-500.0,0.00011246,2]
[353705063,1739994651170,-500.0,0.00011246,2]
[353705065,1739994651179,-500.0,0.00011246,2]
[353705067,1739994651189,-500.0,0.00011246,2]
[353705069,1739994651198,-500.0,0.00011246,2]
[353705071,1739994651207,-500.0,0.00011246,2]
[353705073,1739994651217,-500.0,0.00011246,2]
[353705075,1739994651226,-753.47,0.00011246,2]
[353705077,1739994651236,-317.00465776,0.00011246,2]
[353705079,1739994651246,-479.21250824,0.00011246,2]
[353705081,1739994651258,-500.0,0.00011246,2]
[353705083,1739994651267,-500.0,0.00011246,2]
[353705085,1739994651276,-500.0,0.00011246,2]
[353705087,1739994651286,-500.0,0.00011246,2]
[353705089,1739994651295,-448.65644524,0.00011246,2]
[353705091,1739994651304,-293.12410249,0.00011246,2]
[353705093,1739994651314,-500.0,0.00011246,2]
[353705095,1739994651323,-500.0,0.00011246,2]
[353705097,1739994651332,-500.0,0.00011246,2]
[353705099,1739994651341,-500.0,0.00011246,2]
[353705101,1739994651351,-500.0,0.00011246,2]
[353705103,1739994651360,-500.0,0.00011246,2]
[353705105,1739994651369,-500.0,0.00011246,2]
[353705107,1739994651378,-500.0,0.00011246,2]
[353705109,1739994651387,-500.0,0.00011246,2]
[353705111,1739994651396,-500.0,0.00011246,2]
[353705113,1739994651406,-500.0,0.00011246,2]
[353705115,1739994651415,-500.0,0.00011246,2]
[353705117,1739994651424,-500.0,0.00011246,2]
[353705119,1739994651434,-500.0,0.00011246,2]
[353705121,1739994651443,-500.0,0.00011246,2]
[353705123,1739994651452,-500.0,0.00011246,2]
[353705125,1739994651462,-500.0,0.00011246,2]
[353705127,1739994651471,-500.0,0.00011246,2]
[353705129,1739994651480,-500.0,0.00011246,2]
[353705131,1739994651490,-500.0,0.00011246,2]
[353705133,1739994651500,-500.0,0.00011246,2]
[353705135,1739994651509,-500.0,0.00011246,2]
[353705137,1739994651519,-500.0,0.00011246,2]
[353705139,1739994651528,-500.0,0.00011246,2]
[353705141,1739994651540,-500.0,0.00011246,2]
[353705143,1739994651550,-500.0,0.00011246,2]
[353705145,1739994651559,-500.0,0.00011246,2]
[353705147,1739994651569,-500.0,0.00011246,2]
[353705149,1739994651579,-584.82,0.00011246,2]
[353705151,1739994651588,-500.0,0.00011246,2]
[353705152,1739994651598,-500.0,0.00011246,2]
[353705153,1739994651607,-500.0,0.00011246,2]
[353705154,1739994651616,-500.0,0.00011246,2]
[353705155,1739994651627,-500.0,0.00011246,2]
[353705156,1739994651636,-500.0,0.00011246,2]
[353705157,1739994651646,-500.0,0.00011246,2]
[353705158,1739994651658,-500.0,0.00011246,2]
[353705159,1739994651667,-500.0,0.00011246,2]
[353705160,1739994651676,-500.0,0.00011246,2]
[353705161,1739994651686,-500.0,0.00011246,2]
[353705162,1739994651698,-500.0,0.00011246,2]
[353705164,1739994651707,-500.0,0.00011246,2]
[353705165,1739994651717,-500.0,0.00011246,2]
[353705167,1739994651727,-500.0,0.00011246,2]
[353705168,1739994651738,-500.0,0.00011246,2]
[353705170,1739994651748,-500.0,0.00011246,2]
[353705172,1739994651757,-500.0,0.00011246,2]
[353705174,1739994651767,-500.0,0.00011246,2]